bitfinex/quotes_ETHUSD_20251006
["timestamp","ask_amount","ask_price","bid_price","bid_amount"]
[1759794189500,9.06329278,4698.6,4698.5,0.001]
[1759794191023,9.14846866,4698.6,4698.5,0.001]
[1759794197724,8.949421,4698.6,4698.5,0.001]
[1759794198035,5.67035464,4698.6,4698.5,0.001]
[1759794198236,7.31980305,4698.6,4698.5,0.001]
[1759794198400,9.10195921,4698.6,4698.5,0.001]
[1759794199534,9.54735921,4698.6,4698.5,0.001]
[1759794199833,10.00582051,4698.6,4698.5,0.001]
[1759794201140,10.44048687,4698.6,4698.5,0.001]
[1759794201348,12.36134736,4698.6,4698.5,0.001]
[1759794202145,12.36136178,4698.6,4698.5,0.001]
[1759794202378,8.88336178,4698.6,4698.5,0.001]
[1759794202548,9.10205582,4698.6,4698.5,0.4398]
[1759794202743,6.61687994,4698.6,4698.5,0.4398]
[1759794204644,6.61687994,4698.6,4698.5,0.001]
[1759794205014,6.61692571,4698.6,4698.5,0.001]
[1759794205337,8.02220878,4698.6,4698.5,0.001]
[1759794205536,7.57680878,4698.6,4698.5,0.001]
[1759794206231,7.49163907,4698.6,4698.5,0.001]
[1759794206422,6.61692571,4698.6,4698.5,0.001]
[1759794209050,1.98323218,4698.6,4698.5,0.4398]
[1759794209347,6.51152571,4698.6,4698.5,0.4398]
[1759794209521,4.38323218,4698.6,4698.5,0.4398]
[1759794209935,4.18415616,4698.6,4698.5,0.4398]
[1759794210139,1.78415616,4698.6,4698.5,0.4398]
[1759794210348,1.78415616,4698.6,4698.5,0.001]
[1759794210349,3.91244969,4698.6,4698.5,0.001]
[1759794210545,3.91244969,4698.6,4698.5,0.4398]
[1759794212155,1.78415616,4698.6,4698.5,0.001]
[1759794212328,1.78415616,4698.6,4698.5,0.4398]
[1759794212529,1.78415616,4698.6,4698.5,0.8031274]
[1759794212725,0.002,4698.6,4698.5,0.8031274]
[1759794212925,0.002,4698.6,4698.5,2.67453883]
[1759794213120,0.002,4698.6,4698.5,0.5462]
[1759794215257,0.002,4698.6,4698.5,2.67453883]
[1759794216076,0.002,4698.6,4698.5,0.5462]
[1759794221273,2.13029353,4698.6,4698.5,0.1074]
[1759794221574,0.002,4698.6,4698.5,0.1074]
[1759794222857,0.002,4698.6,4698.5,0.5818]
[1759794223266,0.002,4698.6,4698.5,1.09293064]
[1759794224366,0.002,4698.6,4698.5,0.61853064]
[1759794225270,0.002,4698.6,4698.5,0.1074]
[1759794225672,2.13029353,4698.6,4698.5,0.1074]
[1759794225877,0.002,4698.6,4698.5,0.1074]
[1759794230982,1.78415616,4698.6,4698.5,0.1074]
[1759794233285,3.91244969,4698.6,4698.5,0.1074]
[1759794233497,7.93984079,4698.6,4698.5,0.001]
[1759794233691,7.74085759,4698.6,4698.5,0.001]
[1759794234867,7.93985892,4698.6,4698.5,0.001]
[1759794243744,7.4718365,4698.6,4698.5,0.001]
[1759794243900,6.6170286,4698.6,4698.5,0.001]
[1759794244513,4.2180286,4698.6,4698.5,0.001]
[1759794244814,4.1116286,4698.6,4698.5,0.001]
[1759794245586,1.98333507,4698.6,4698.5,0.001]
[1759794245911,1.98333507,4698.6,4698.5,0.4422]
[1759794246237,4.1116286,4698.6,4698.5,0.001]
[1759794248298,1.98333507,4698.6,4698.5,0.001]
[1759794249129,4.1116286,4698.6,4698.5,0.001]
[1759794250028,1.98333507,4698.6,4698.5,0.001]
[1759794250596,1.78415616,4698.6,4698.5,0.001]
[1759794251308,4.11165991,4698.6,4698.5,0.001]
[1759794251738,4.57165991,4698.6,4698.5,0.001]
[1759794252933,8.52388885,4698.6,4698.5,0.001]
[1759794254930,8.6090553,4698.6,4698.5,0.001]
[1759794256034,9.06789587,4698.6,4698.5,0.001]
[1759794257132,8.6090553,4698.6,4698.5,0.001]
[1759794257539,8.6090553,4698.6,4698.1,0.001]
[1759794257540,2.76207473,4698.2,4698.1,0.001]
[1759794257709,10.03719013,4698.2,4698.1,0.001]
[1759794257904,10.49719013,4698.2,4698.1,0.001]
[1759794258142,10.58237508,4698.2,4698.1,0.001]
[1759794258548,12.36353124,4698.2,4698.1,0.001]
[1759794259452,11.90480916,4698.2,4698.1,0.001]
[1759794261710,12.36287663,4698.2,4698.1,0.001]
[1759794262316,11.90480916,4698.2,4698.1,0.001]
[1759794263230,11.90480916,4698.2,4698.0,0.001]
[1759794263231,6.9422762,4698.1,4698.0,0.001]
[1759794263425,8.92522278,4698.1,4698.0,0.001]
[1759794263652,9.38522278,4698.1,4698.0,0.001]
[1759794263860,9.47041136,4698.1,4698.0,0.001]
[1759794265555,9.92804473,4698.1,4698.0,0.001]
[1759794269258,9.47041136,4698.1,4698.0,0.001]
[1759794272758,2.12870127,4697.7,4697.6,0.001]
[1759794273060,5.46591149,4697.7,4697.6,0.001]
[1759794273454,5.55110025,4697.7,4697.6,0.001]
[1759794273786,5.55110025,4697.7,4697.6,0.4432]
[1759794273935,3.15310025,4697.7,4697.6,0.001]
[1759794274265,5.55110025,4697.7,4697.6,0.001]
[1759794274443,5.97305179,4697.7,4697.6,0.001]
[1759794274965,5.97240105,4697.7,4697.6,0.001]
[1759794275367,7.5098087,4697.7,4697.6,0.001]
[1759794278182,3.15244951,4697.7,4697.6,0.001]
[1759794278388,5.55044951,4697.7,4697.6,0.001]
[1759794278576,7.32960567,4697.7,4697.6,0.001]
[1759794280982,7.75790567,4697.7,4697.6,0.001]
[1759794281567,7.32960567,4697.7,4697.6,0.001]
[1759794285189,8.18781036,4697.7,4697.6,0.001]
[1759794285396,7.75951036,4697.7,4697.6,0.001]
[1759794285894,8.21845162,4697.7,4697.6,0.001]
[1759794286465,8.21845162,4697.7,4696.9,0.001]
[1759794286466,8.21845162,4697.7,4696.1,0.01]
[1759794286467,0.6336,4697.2,4696.1,0.01]
[1759794286675,0.6336,4697.6,4696.1,0.01]
[1759794286676,9.81160645,4696.2,4696.1,0.01]
[1759794286993,9.81160645,4696.2,4695.1,0.01]
[1759794286994,2.12983472,4695.2,4695.1,0.01]
[1759794287293,4.52783472,4695.2,4695.1,0.01]
[1759794287670,5.16192056,4695.2,4695.1,0.01]
[1759794288272,4.96303472,4695.2,4695.1,0.01]
[1759794288687,4.96303472,4695.2,4695.1,0.4452]
[1759794289292,4.96303472,4695.2,4695.1,0.01]
[1759794290000,4.96303472,4695.2,4695.1,0.4452]
[1759794290392,0.4352,4695.2,4695.1,0.4452]
[1759794290572,2.399,4695.4,4695.1,0.4452]
[1759794290767,0.63911444,4695.4,4695.1,0.4452]
[1759794291280,2.76886305,4695.4,4695.1,0.4452]
[1759794291902,1.77515616,4695.3,4695.1,0.4452]
[1759794292097,3.90494552,4695.3,4695.2,0.4352]
[1759794292304,6.30394552,4695.3,4695.2,0.4352]
[1759794294000,2.12983472,4695.2,4695.1,0.01]
[1759794294220,4.52883472,4695.2,4695.1,0.01]
[1759794294504,4.52883472,4695.2,4695.1,0.4452]
[1759794295875,2.399,4695.2,4695.1,0.4452]
[1759794296072,4.52883472,4695.2,4695.1,0.4452]
[1759794296269,4.52883472,4695.2,4695.1,0.01]
[1759794296270,6.30399088,4695.2,4695.1,0.01]
[1759794296586,8.9548744,4695.2,4695.1,0.01]
[1759794302310,6.38991243,4694.9,4694.1,0.01]
[1759794302511,2.23668844,4694.2,4694.1,0.01]
[1759794302684,4.63768844,4694.2,4694.1,0.01]
[1759794302883,6.17797955,4694.2,4694.1,0.01]
[1759794303100,5.74967955,4694.2,4694.1,0.01]
[1759794306302,5.07288844,4694.2,4694.1,0.01]
[1759794306788,5.07288844,4694.2,4694.1,0.011]
[1759794307717,6.8480446,4694.2,4694.1,0.011]
[1759794307919,6.8480446,4694.2,4694.1,0.4532]
[1759794307920,2.31675616,4694.2,4694.1,0.4532]
[1759794308118,1.77515616,4694.2,4694.1,0.4532]
[1759794308318,4.17615616,4694.2,4694.1,0.4532]
[1759794308481,4.17615616,4694.2,4694.1,0.72220175]
[1759794308839,1.77515616,4694.2,4694.1,2.85253557]
[1759794309018,1.77515616,4694.2,4694.1,0.72220175]
[1759794309315,0.63922611,4694.6,4694.1,2.68992595]
[1759794309519,0.63922611,4694.6,4694.2,0.4422]
[1759794309520,2.402,4694.6,4694.2,0.4422]
[1759794309702,2.402,4694.6,4694.1,0.1174]
[1759794310023,7.41251369,4694.2,4694.1,0.011]
[1759794310195,6.51022185,4694.2,4694.1,0.011]
[1759794310385,11.79110899,4694.2,4694.1,0.011]
[1759794310587,14.19110899,4694.2,4694.1,0.011]
[1759794310786,6.70588374,4694.2,4694.1,0.011]
[1759794310986,9.00148374,4694.2,4694.1,0.011]
[1759794311193,9.43608555,4694.2,4694.1,0.011]
[1759794311394,9.43609584,4694.2,4694.1,0.011]
[1759794316061,11.211252,4694.2,4694.1,0.011]
[1759794316256,11.21155454,4694.2,4694.1,0.011]
[1759794316447,11.66805408,4694.2,4694.1,0.011]
[1759794316951,11.66821795,4694.2,4694.1,0.011]
[1759794318366,11.75348079,4694.2,4694.1,0.011]
[1759794319923,11.75348079,4694.2,4694.1,1e-08]
[1759794320463,11.7533939,4694.2,4694.1,1e-08]
[1759794321036,11.8597939,4694.2,4694.1,1e-08]
[1759794322960,9.4577939,4694.2,4694.1,1e-08]
[1759794323160,11.8597939,4694.2,4694.1,1e-08]
[1759794324948,11.8617939,4694.2,4694.1,1e-08]
[1759794325147,11.86182789,4694.2,4694.1,1e-08]
[1759794325473,2.40775615,4693.5,4693.4,0.4422]
[1759794325677,4.37424365,4693.5,4693.4,0.4422]
[1759794325879,4.17615615,4693.5,4693.4,0.4422]
[1759794326174,6.3067623,4693.5,4693.4,0.4422]
[1759794326362,6.50488976,4693.5,4693.4,0.4422]
[1759794326764,4.10288976,4693.5,4693.4,0.4422]
[1759794326951,6.50488976,4693.5,4693.4,0.4422]
[1759794328358,8.18592128,4693.5,4693.1,0.011]
[1759794328565,2.23714235,4693.2,4693.1,0.011]
[1759794328759,4.83726981,4693.2,4693.1,0.011]
[1759794329074,4.63914235,4693.2,4693.1,0.011]
[1759794330685,4.83739443,4693.2,4693.1,0.011]
[1759794330888,2.70665208,4693.2,4693.1,0.4532]
[1759794331187,4.63914235,4693.2,4693.1,0.4532]
[1759794332154,4.83751721,4693.2,4693.1,0.4532]
[1759794332986,2.70677486,4693.2,4693.1,0.4532]
[1759794333186,4.83751721,4693.2,4693.1,0.4532]
[1759794333389,4.83751721,4693.2,4693.1,0.011]
[1759794333758,4.83751721,4693.2,4693.1,0.4491]
[1759794334978,4.83775608,4693.2,4693.1,0.4491]
[1759794335687,4.63914235,4693.2,4693.1,0.4491]
[1759794336263,4.83779479,4693.2,4693.1,0.4491]
[1759794336476,4.63914235,4693.2,4693.1,0.4491]
[1759794337089,4.63914235,4693.2,4693.1,0.011]
[1759794337294,7.90129435,4693.2,4693.1,0.011]
[1759794337493,8.09996931,4693.2,4693.1,0.011]
[1759794338999,7.24557346,4693.2,4693.1,0.011]
[1759794339677,2.07923111,4693.2,4693.1,0.011]
[1759794339879,2.07923111,4693.2,4693.1,0.4395]
[1759794339880,4.37383111,4693.2,4693.1,0.4395]
[1759794340504,6.3058985,4693.2,4693.1,0.011]
[1759794340691,6.50487862,4693.2,4693.1,0.011]
[1759794341377,6.96457862,4693.2,4693.1,0.011]
[1759794341598,7.88474248,4693.2,4693.1,0.011]
[1759794341973,8.31936236,4693.2,4693.1,0.011]
[1759794342592,7.85966236,4693.2,4693.1,0.011]
[1759794343005,8.31936236,4693.2,4693.1,0.011]
[1759794344204,7.85966236,4693.2,4693.1,0.011]
[1759794345184,8.31936236,4693.2,4693.1,0.011]
[1759794346012,7.85966236,4693.2,4693.1,0.011]
[1759794346399,8.31936236,4693.2,4693.1,0.011]
[1759794347908,8.5182976,4693.2,4693.1,0.011]
[1759794348408,8.0585976,4693.2,4693.1,0.011]
[1759794350114,8.05856272,4693.2,4693.1,0.011]
[1759794350283,8.51826272,4693.2,4693.1,0.011]
[1759794351111,8.05856272,4693.2,4693.1,0.011]
[1759794351303,8.51826272,4693.2,4693.1,0.011]
[1759794353303,8.9765096,4693.2,4693.1,0.011]
[1759794353894,9.0617819,4693.2,4693.1,0.011]
[1759794355028,9.0617819,4693.2,4693.1,1e-08]
[1759794355228,18.5817819,4693.2,4693.1,1e-08]
[1759794359031,16.1807819,4693.2,4693.1,1e-08]
[1759794359207,18.5817819,4693.2,4693.1,1e-08]
[1759794360550,2.13096937,4692.7,4692.6,0.001]
[1759794360749,4.73086973,4692.7,4692.6,0.001]
[1759794360975,5.29696973,4692.7,4692.6,0.001]
[1759794361106,5.72546973,4692.7,4692.6,0.001]
[1759794361913,5.88683596,4692.7,4692.6,0.001]
[1759794362638,7.6609921,4692.7,4692.6,0.001]
[1759794363343,8.89671382,4692.7,4692.6,0.001]
[1759794364643,7.12255768,4692.7,4692.6,0.001]
[1759794367965,4.72155768,4692.7,4692.6,0.001]
[1759794368254,7.12255768,4692.7,4692.6,0.001]
[1759794369554,9.97964562,4692.7,4692.6,0.001]
[1759794369752,14.26218329,4692.7,4692.6,0.001]
[1759794369955,14.36858329,4692.7,4692.6,0.001]
[1759794373255,13.89868329,4692.7,4692.6,0.001]
[1759794373947,7.05144562,4692.7,4692.6,0.4397]
[1759794374153,4.94266973,4692.7,4692.6,0.4397]
[1759794374351,7.23826973,4692.7,4692.6,0.4397]
[1759794375631,7.23826973,4692.7,4692.6,0.001]
[1759794375846,5.7930728,4692.7,4692.6,0.001]
[1759794376051,8.6337728,4692.7,4692.6,0.001]
[1759794376252,9.71024053,4692.7,4692.6,0.001]
[1759794377133,7.30824053,4692.7,4692.6,0.001]
[1759794377345,9.71024053,4692.7,4692.6,0.4397]
[1759794377562,7.30824053,4692.7,4692.6,0.4397]
[1759794377770,9.71024053,4692.7,4692.6,0.4397]
[1759794377978,7.30824053,4692.7,4692.6,0.4397]
[1759794378173,2.76470561,4692.4,4692.1,0.011]
[1759794378348,2.13119645,4692.2,4692.1,0.011]
[1759794378875,4.53319645,4692.2,4692.1,0.011]
[1759794379182,0.89445614,4692.2,4692.1,0.011]
[1759794379551,5.42765259,4692.2,4692.1,0.011]
[1759794379767,3.02565259,4692.2,4692.1,0.011]
[1759794379981,5.42765259,4692.2,4692.1,0.011]
[1759794380275,5.42765259,4692.2,4692.1,0.2959]
[1759794381347,3.02565259,4692.2,4692.1,0.2959]
[1759794381552,3.29745614,4692.2,4692.1,0.2959]
[1759794381755,5.42865259,4692.2,4692.1,0.2959]
[1759794382569,0.89445614,4692.2,4692.1,0.2959]
[1759794382790,3.29645614,4692.2,4692.1,0.2959]
[1759794382993,3.02565259,4692.2,4692.1,0.2959]
[1759794383565,5.42765259,4692.2,4692.1,0.011]
[1759794384396,3.29645614,4692.2,4692.1,0.2959]
[1759794384972,5.42765259,4692.2,4692.1,0.2959]
[1759794385662,0.89445614,4692.2,4692.1,0.2959]
[1759794386296,3.29645614,4692.2,4692.1,0.4023]
[1759794386707,5.42765259,4692.2,4692.1,0.4023]
[1759794387070,4.53319645,4692.2,4692.1,0.4023]
[1759794387566,4.53319645,4692.2,4692.1,0.011]
[1759794389478,2.402,4692.2,4692.1,0.011]
[1759794389694,2.402,4692.2,4692.1,0.2959]
[1759794389880,4.53319645,4692.2,4692.1,0.011]
[1759794392099,2.402,4692.2,4692.1,0.011]
[1759794392288,4.53319645,4692.2,4692.1,0.011]
[1759794392916,2.402,4692.2,4692.1,0.011]
[1759794393120,4.53319645,4692.2,4692.1,0.011]
[1759794393416,4.99989645,4692.2,4692.1,0.011]
[1759794394321,5.72363921,4692.2,4692.1,0.011]
[1759794394522,5.92228802,4692.2,4692.1,0.011]
[1759794395083,5.92228809,4692.2,4692.1,0.011]
[1759794395617,5.25693921,4692.2,4692.1,0.011]
[1759794397728,4.53319645,4692.2,4692.1,0.011]
[1759794399925,5.18979403,4692.2,4692.1,0.011]
[1759794400841,4.73179403,4692.2,4692.1,0.011]
[1759794401696,4.53319645,4692.2,4692.1,0.011]
[1759794401897,4.73185764,4692.2,4692.1,0.011]
[1759794405403,5.18985764,4692.2,4692.1,0.011]
[1759794405622,5.50328561,4692.2,4692.1,0.011]
[1759794406133,5.96128561,4692.2,4692.1,0.011]
[1759794406694,4.73185764,4692.2,4692.1,0.011]
[1759794407093,0.19866119,4692.2,4692.1,0.011]
[1759794407296,2.13119645,4692.2,4692.1,0.011]
[1759794407711,4.53319645,4692.2,4692.1,0.011]
[1759794410427,2.402,4692.2,4692.1,0.2959]
[1759794410631,2.402,4692.2,4692.1,0.011]
[1759794410934,4.53319645,4692.2,4692.1,0.011]
[1759794411604,2.13119645,4692.2,4692.1,0.011]
[1759794412028,4.53419645,4692.2,4692.1,0.011]
[1759794413033,2.403,4692.2,4692.1,0.011]
[1759794414305,4.53419645,4692.2,4692.1,0.011]
[1759794416453,6.65346996,4692.2,4692.1,0.011]
[1759794417649,7.28706996,4692.2,4692.1,0.011]
[1759794417814,7.48578162,4692.2,4692.1,0.011]
[1759794423028,7.59218162,4692.2,4692.1,0.011]
[1759794425413,0.6336,4691.9,4691.6,0.001]
[1759794425757,2.23782357,4691.7,4691.6,0.001]
[1759794425950,2.43653523,4691.7,4691.6,0.001]
[1759794426152,2.87353523,4691.7,4691.6,0.001]
[1759794428946,3.50713523,4691.7,4691.6,0.001]
[1759794429716,3.50687801,4691.7,4691.6,0.001]
[1759794430031,3.50687801,4691.7,4690.8,0.2849]
[1759794430032,2.76520531,4691.3,4690.8,0.2849]
[1759794430242,5.50350689,4691.2,4690.8,0.2849]
[1759794431124,5.50350689,4691.2,4690.3,0.1064]
[1759794431125,4.64105075,4691.2,4690.3,0.1064]
[1759794431445,4.64105075,4691.2,4690.5,0.2849]
[1759794431854,4.64105075,4691.2,4691.1,0.011]
[1759794432635,2.5094,4691.2,4691.1,0.2959]
[1759794432954,4.64105075,4691.2,4691.1,0.2959]
[1759794434150,2.23805075,4691.2,4691.1,0.2959]
[1759794434354,4.64105075,4691.2,4691.1,0.011]
[1759794434951,2.23805075,4691.2,4691.1,0.011]
[1759794435155,4.64105075,4691.2,4691.1,0.011]
[1759794436063,2.5094,4691.2,4691.1,0.011]
[1759794436224,5.79623816,4693.5,4691.1,0.011]
[1759794436225,2.13132288,4692.0,4691.1,0.011]
[1759794436426,2.61613229,4691.9,4691.2,0.2849]
[1759794436626,2.13142937,4691.7,4691.2,0.2849]
[1759794436871,2.403,4691.6,4691.3,0.2849]
[1759794437166,4.53450273,4691.6,4691.1,0.011]
[1759794437366,2.13150273,4691.6,4691.1,0.011]
[1759794437527,2.403,4691.5,4691.2,0.2849]
[1759794438149,4.53452028,4691.5,4691.1,0.011]
[1759794438370,2.403,4691.5,4691.1,0.011]
[1759794439269,2.403,4691.5,4691.1,0.2959]
[1759794439466,4.53453113,4691.5,4691.1,0.011]
[1759794440035,2.403,4691.5,4691.1,0.011]
[1759794440536,3.11328344,4691.5,4691.1,0.011]
[1759794440736,2.403,4691.5,4691.1,0.011]
[1759794440973,2.402,4691.4,4691.1,0.2959]
[1759794441173,0.437,4692.1,4691.2,0.2849]
[1759794441465,2.402,4692.0,4691.2,0.2849]
[1759794441667,2.402,4691.9,4691.2,0.2849]
[1759794441872,4.53333915,4691.9,4691.2,0.2849]
[1759794442170,4.53333915,4691.9,4691.2,0.52766471]
[1759794442349,2.402,4691.8,4691.2,0.24276471]
[1759794442548,2.402,4691.7,4691.2,0.24276471]
[1759794442866,2.402,4691.6,4691.1,0.011]
[1759794443067,2.402,4691.5,4691.1,0.011]
[1759794443280,2.402,4691.5,4691.1,0.2959]
[1759794443881,2.13160899,4691.3,4691.1,0.011]
[1759794444180,2.402,4691.2,4691.1,0.011]
[1759794444954,4.53365075,4691.2,4691.1,0.011]
[1759794445950,2.402,4691.2,4691.1,0.011]
[1759794447571,0.1064,4691.6,4691.1,0.011]
[1759794447774,2.239,4694.5,4691.1,0.011]
[1759794447775,0.45786247,4692.4,4691.1,2.42755477]
[1759794448087,2.13145162,4691.7,4691.4,0.1064]
[1759794448287,2.402,4691.6,4691.4,0.1064]
[1759794448988,2.404,4691.6,4691.4,0.1064]
[1759794450183,4.53547096,4691.6,4691.4,0.1064]
[1759794450495,2.13151444,4691.5,4691.4,0.1064]
[1759794450854,4.53547816,4691.6,4691.4,0.1064]
[1759794451258,2.404,4691.6,4691.4,0.1064]
[1759794452086,4.53550119,4691.6,4691.4,0.1064]
[1759794453202,4.53548158,4691.6,4691.4,0.1064]
[1759794454009,2.404,4691.6,4691.4,0.1064]
[1759794454492,4.53547971,4691.6,4691.4,0.1064]
[1759794454891,2.404,4691.6,4691.4,0.1064]
[1759794455479,0.1084,4692.1,4691.4,0.1064]
[1759794455706,0.1084,4692.1,4691.6,2.4]
[1759794455707,0.002,4692.1,4691.6,2.4]
[1759794456000,0.002,4692.1,4692.0,0.1064]
[1759794456803,2.58334187,4692.1,4692.0,0.1064]
[1759794457001,2.58334187,4692.1,4691.5,0.1064]
[1759794457002,0.5585,4692.1,4691.5,0.1064]
[1759794457184,2.13135406,4691.9,4691.5,0.1064]
[1759794457505,2.58145406,4691.9,4691.5,0.1064]
[1759794463112,0.4501,4691.9,4691.5,0.1064]
[1759794463286,0.1084,4692.1,4691.5,0.1064]
[1759794463487,2.402,4692.0,4691.5,0.1064]
[1759794464098,2.402,4692.0,4691.5,2.23790765]
[1759794464285,2.402,4692.0,4691.5,2.70445338]
[1759794464715,2.402,4692.0,4691.5,0.57294573]
[1759794465829,0.002,4692.1,4691.9,0.1064]
[1759794466027,0.002,4692.1,4691.9,2.23773001]
[1759794466528,0.002,4692.1,4691.9,0.1064]
[1759794467528,0.002,4692.0,4691.9,0.1064]
[1759794468820,0.002,4692.0,4691.9,2.23773272]
[1759794469003,0.002,4692.0,4691.9,0.1064]
[1759794469403,0.002,4692.0,4691.9,2.52674868]
[1759794470394,0.002,4692.0,4691.9,0.39541596]
[1759794470599,0.002,4692.0,4691.9,5.21164868]
[1759794472631,0.002,4692.0,4691.9,35.21164868]
[1759794472804,0.002,4692.0,4691.9,19.9068378]
[1759794473635,0.002,4692.0,4691.9,20.2444208]
[1759794473844,0.002,4692.0,4691.9,19.9919788]
[1759794474748,0.002,4692.6,4691.9,19.9919788]
[1759794474749,0.002,4692.6,4692.0,2.4]
[1759794475039,0.002,4693.1,4692.2,2.4]
[1759794475226,0.002,4693.1,4692.1,33.4057486]
[1759794475227,0.002,4693.1,4692.8,2.13091993]
[1759794475428,0.002,4693.1,4692.1,5.2836876]
[1759794475429,0.002,4693.1,4692.9,4.53186597]
[1759794475756,0.002,4693.1,4693.0,2.13083315]
[1759794476047,0.002,4693.1,4693.0,2.58093315]
[1759794476242,0.002,4693.1,4693.0,2.86994911]
[1759794476447,0.002,4693.1,4693.0,0.73911596]
[1759794476740,0.002,4693.1,4693.0,2.86994911]
[1759794476939,0.002,4693.1,4693.0,14.33368111]
[1759794477959,0.002,4693.1,4693.0,15.90286211]
[1759794478117,0.002,4693.1,4693.0,16.18776211]
[1759794478925,0.002,4693.1,4693.0,24.03990511]
[1759794479130,0.002,4693.1,4693.0,19.90345211]
[1759794479929,0.002,4693.1,4693.0,20.70515611]
[1759794480531,0.002,4693.1,4693.0,10.46550211]
[1759794480727,0.4521,4693.1,4693.0,7.62072996]
[1759794480962,0.4521,4693.1,4693.0,5.54011596]
[1759794481263,0.4521,4693.1,4693.0,7.67094911]
[1759794481576,0.4521,4693.1,4693.0,2.4]
[1759794481778,0.4521,4693.1,4692.7,4.53195744]
[1759794482066,0.4501,4693.0,4692.8,2.13088199]
[1759794482234,0.002,4693.1,4692.6,4.53199393]
[1759794482235,0.4501,4692.9,4692.6,4.801]
[1759794482444,0.4501,4692.8,4692.6,2.401]
[1759794482640,0.002,4693.1,4692.6,2.401]
[1759794482641,0.4501,4692.7,4692.6,4.53200646]
[1759794482842,0.4501,4693.0,4692.7,4.53096467]
[1759794483038,0.4358,4692.9,4692.7,4.53096467]
[1759794483826,0.4358,4692.9,4692.8,2.13092396]
[1759794484723,0.4358,4692.9,4692.8,2.23732396]
[1759794484927,0.4358,4692.9,4692.8,0.1064]
[1759794485187,2.56667856,4692.9,4692.8,0.1064]
[1759794485339,0.002,4693.1,4692.8,0.1064]
[1759794485663,0.4358,4693.0,4692.8,0.1064]
[1759794485838,0.4358,4692.9,4692.8,0.1064]
[1759794486257,0.4378,4692.9,4692.8,0.1064]
[1759794487166,2.56867856,4692.9,4692.8,0.1064]
[1759794487733,0.4378,4692.9,4692.8,0.1064]
[1759794489483,2.56867856,4692.9,4692.8,0.1064]
[1759794489688,2.13095632,4692.8,4692.5,0.1064]
[1759794489862,0.002,4692.9,4692.5,0.1064]
[1759794490060,0.4358,4692.8,4692.5,0.1064]
[1759794491794,0.002,4692.9,4692.5,0.1064]
[1759794491989,0.4358,4692.8,4692.5,2.23741926]
[1759794492181,0.4358,4692.8,4692.5,2.2374546]
[1759794492859,0.002,4692.9,4692.5,2.2374546]
[1759794493061,0.4378,4692.9,4692.5,0.1064]
[1759794493260,0.4358,4692.8,4692.5,0.1064]
[1759794493761,0.4358,4692.7,4692.5,0.1064]
[1759794495460,0.4358,4692.7,4692.5,2.23745642]
[1759794495661,0.002,4692.9,4692.5,2.23745642]
[1759794495998,0.4378,4692.9,4692.5,2.23745642]
[1759794496293,0.002,4692.9,4692.7,2.13096937]
[1759794496512,0.002,4692.9,4692.6,0.2849]
[1759794496513,0.002,4692.9,4692.8,2.23732396]
[1759794498587,0.002,4692.9,4692.8,2.52222396]
[1759794499169,0.002,4692.9,4692.8,2.23732396]
[1759794499365,0.002,4692.9,4692.8,2.55602145]
[1759794502081,0.002,4692.9,4692.8,0.42509749]
[1759794502270,0.4378,4692.9,4692.8,0.1064]
[1759794503906,0.002,4692.9,4692.8,2.23732396]
[1759794505329,0.002,4692.9,4692.8,34.63932396]
[1759794505536,0.002,4693.6,4693.0,2.13083315]
[1759794505699,2.1299226,4695.1,4693.8,2.13046998]
[1759794505700,0.08523032,4695.1,4693.8,2.13046998]
[1759794506028,0.4358,4694.9,4693.8,17.43889598]
[1759794506229,0.08523032,4695.1,4693.8,32.87691298]
[1759794506433,0.08523032,4695.1,4693.8,36.41955998]
[1759794506639,0.08523032,4695.1,4693.8,33.28818898]
[1759794506805,0.4378,4695.2,4694.0,2.1303792]
[1759794506999,0.4378,4695.2,4694.0,33.0473152]
[1759794507200,0.4378,4695.2,4694.0,32.5305012]
[1759794507401,0.4378,4695.2,4694.0,32.4772632]
[1759794507602,0.4378,4695.2,4694.0,20.0714532]
[1759794508537,0.4378,4695.2,4694.0,28.3742932]
[1759794509130,0.4378,4695.2,4694.0,27.2525002]
[1759794509496,0.4378,4695.2,4694.0,28.4849732]
[1759794509837,0.002,4695.2,4694.5,2.1301523]
[1759794510131,0.002,4695.2,4694.5,6.9331523]
[1759794510330,0.002,4695.2,4694.5,12.7366103]
[1759794510704,0.002,4695.2,4694.5,10.6782673]
[1759794511310,0.002,4695.2,4694.5,10.9631673]
[1759794511521,0.002,4695.2,4694.5,37.3244523]
[1759794511833,0.002,4695.2,4694.5,29.7867683]
[1759794512619,0.002,4695.2,4694.5,25.5109273]
[1759794512825,0.002,4695.2,4694.5,24.8014173]
[1759794513505,0.002,4695.2,4694.5,33.4401713]
[1759794513911,0.002,4695.2,4694.5,30.3599213]
[1759794514643,0.002,4695.2,4694.5,32.5754803]
[1759794515033,0.4637,4695.2,4694.5,15.2579223]
[1759794515246,0.4617,4695.0,4694.5,7.0395523]
[1759794515843,0.002,4695.2,4694.5,7.0395523]
[1759794515844,0.4637,4694.6,4694.5,4.9094]
[1759794517018,0.4637,4694.6,4694.5,17.2260013]
[1759794517327,0.002,4694.6,4694.5,11.509741]
[1759794517635,0.4484,4694.6,4694.5,11.509741]
[1759794519038,0.002,4694.6,4694.5,13.6398933]
[1759794519948,0.002,4694.6,4694.5,7.0395523]
[1759794520155,0.002,4694.6,4694.5,13.6381273]
[1759794520456,0.002,4694.6,4694.5,2.5064]
[1759794520457,0.4484,4694.6,4694.5,2.5064]